Cogmind - Beta 15 @@@ ROGUE MODE // 2025.06.08 @ 05:11:52 Player: Wyvric Result: Destroyed by H-66 Slayer with Gauss Rifle Performance ------------- Evolutions (5) 2500 Regions Visited (10) 2000 Robots Destroyed (264) 1320 Value Destroyed (8825) 8825 Prototype IDs (21) 420 Alien Tech Used (0) 0 Bonus (1657) 1657 TOTAL SCORE: 16722 Bonus ------- High Alert Combat Kills 836 Follower Combat Kills 21 Registered with UFD 300 Met Optimus in HQ 500 Cogmind --------- Core Integrity 0/1000 Matter 13/300 Energy 100/100 System Corruption 27% Temperature Cool (0) Movement Core (1350) Ox26 Location -5/Factory Parts ------- > --- POWER (2) -------- (None) > --- PROPULSION (4) --- (None) > --- UTILITY (7) ------ Huge Storage Unit > --- WEAPON (4) ------- (None) > --- INVENTORY (25) --- F-cell Engine Fission Core Advanced Cooling System Improved Coolant Injector Large Matter Pod (0) Experimental Sensor Array Improved Signal Interpreter Advanced Terrain Scanner Active Cooling Armor A0-MCA's Component Scanner Magnetic Acceleration Cannon Rocket Array CPS Tube (2) CPS Tube (2) CPS Tube (2) CPS Tube (2) CPS Tube (2) Axe Peak State ------------ > --- POWER ------------ F-cell Engine F-cell Engine > --- PROPULSION ------- Armored Medium Treads Armored Medium Treads Armored Medium Treads Thunder Leg > --- UTILITY ---------- Improved Coolant Injector Improved Coolant Injector Huge Storage Unit Advanced Terrain Scanner Advanced Terrain Scan Processor Expert System Improved Thermal Shield > --- WEAPON ----------- Magnetic Acceleration Cannon Light Antimatter Cannon Enhanced Hardcell Cannon Enhanced Hardcell Cannon > --- INVENTORY -------- F-cell Engine Thunder Leg Thunder Leg Thunder Leg Thunder Leg Thunder Leg Thunder Leg Improved Coolant Injector Experimental Sensor Array Improved Signal Interpreter Active Cooling Armor A0-MCA's Component Scanner High-powered Tractor Beam Magnetic Acceleration Cannon Magnetic Acceleration Cannon Magnetic Acceleration Cannon Mass Driver Rocket Array CPS Tube CPS Tube CPS Tube CPS Tube CPS Tube [Rating: 116] Favorites ----------- Power F-cell Engine Engine F-cell Engine Power Core Light Nuclear Core Propulsion Advanced Treads Treads Advanced Treads Leg Titanium Leg Wheel Compact Wheel Flight Unit Cooled Cesium-ion Thruster Utility Huge Storage Unit Device Improved Terrain Scanner Storage Huge Storage Unit Processor Advanced Terrain Scan Processor Hackware Hacking Suite Protection Insulated Plating Weapon Light Antimatter Cannon Energy Gun Spread Laser Energy Cannon Improved EM Pulse Cannon Ballistic Gun Heavy Assault Rifle Ballistic Cannon Light Antimatter Cannon Launcher Guided EMP Blaster Build | -11 -10 -10 -9 -9 -8 -7 -7 -7 -7 -5 ------- Run | Yrd Mat Min Mat Min Mat Fac Sto Rec Scr Fac Slots Evolved 10 | . . . 2 . 2 2 . . . 4 Power 1 | . . . . . . . . . . 1 Propulsion 2 | . . . . . 2 . . . . . Utility 5 | . . . 2 . . 1 . . . 2 Weapon 2 | . . . . . . 1 . . . 1 Parts Attached 189 | 6 11 6 25 13 26 30 2 2 26 42 Power 18 | 1 1 . 3 3 3 2 . . 3 2 Engine 15 | 1 1 . 3 3 1 1 . . 3 2 Core 3 | . . . . . 2 1 . . . . Reactor . | . . . . . . . . . . . Propulsion 56 | 2 4 . 7 3 8 14 . . 7 11 Treads 24 | 2 1 . 4 2 . 9 . . 2 4 Leg 19 | . . . 1 . 8 3 . . . 7 Wheel 9 | . 3 . 2 1 . . . . 3 . Hover . | . . . . . . . . . . . Flight 4 | . . . . . . 2 . . 2 . Utility 66 | 1 1 2 8 4 8 6 2 2 13 19 Device 32 | . . 2 2 1 3 2 1 1 7 13 Storage 6 | 1 1 . 2 . . . . . . 2 Processor 8 | . . . 1 . . 2 . 1 3 1 Hackware 4 | . . . 1 . 1 . 1 . . 1 Protection 16 | . . . 2 3 4 2 . . 3 2 Artifact . | . . . . . . . . . . . Weapon 49 | 2 5 4 7 3 7 8 . . 3 10 Energy Gun 5 | . 1 3 1 . . . . . . . Energy Cannon 4 | . . . . 1 . . . . 1 2 Ballistic Gun 20 | 2 4 1 1 2 6 2 . . 2 . Ballistic Cannon 15 | . . . 4 . 1 4 . . . 6 Launcher 5 | . . . 1 . . 2 . . . 2 Special Weapon . | . . . . . . . . . . . Impact Weapon . | . . . . . . . . . . . Slashing Weapon . | . . . . . . . . . . . Piercing Weapon . | . . . . . . . . . . . Special Melee Weapon . | . . . . . . . . . . . Unidentified Prototypes 11 | . . 1 3 . 1 6 . . . . Parts Lost 64 | . 3 3 3 7 7 13 . . . 28 Power 9 | . 1 . . 3 2 1 . . . 2 Propulsion 20 | . 1 1 1 1 . 4 . . . 12 Utility 18 | . . . 1 2 3 4 . . . 8 Weapon 17 | . 1 2 1 1 2 4 . . . 6 Highest Loss Streak 11 | . 1 2 1 3 2 7 . . . 11 To Critical Strikes 2 | . . . . 1 . . . . . 1 Average Backups 20 | 3 12 23 24 21 23 24 22 22 17 22 Power . | . . . . . . 1 1 1 . 1 Propulsion 5 | 1 6 7 5 5 4 6 7 7 3 3 Utility 5 | . 4 9 6 5 5 8 7 5 4 8 Weapon 8 | . 1 6 11 10 13 7 6 9 7 4 Tool/Special . | . . . . . . . . . . . Unused Backups 64 | . 3 . 13 1 14 5 1 1 7 19 Power 6 | . 1 . . . . 2 . . 1 2 Propulsion 5 | . . . 4 . . . . . 1 . Utility 16 | . . . 5 . 2 2 . 1 1 5 Weapon 32 | . 2 . 4 1 12 1 1 . 4 7 Tool/Special 5 | . . . . . . . . . . 5 Average Slot Usage (%) 88 | . 76 81 94 86 94 87 84 86 89 86 Engine 6 | . 6 . 9 7 3 3 7 7 6 9 Treads 16 | . 23 . 18 21 . 4 30 30 21 11 Leg 5 | . . . . . 35 24 . . . 4 Wheel 3 | . 3 25 3 . . . . . 3 2 Device 8 | . . 13 11 9 7 5 3 1 9 13 Storage 8 | . 14 14 11 11 9 7 7 7 6 5 Processor 4 | . . . 2 . . 5 . 1 9 9 Hackware 3 | . . . 10 . . . 3 7 5 2 Protection 6 | . . . 5 13 16 9 7 5 2 2 Energy Gun 1 | . 1 15 3 . . . . . . . Ballistic Gun 6 | . 26 11 . 1 17 17 . . . . Ballistic Cannon 12 | . . . 18 19 . 4 23 23 16 13 Peak Build Rating 116 | 6 10 18 25 26 40 85 85 84 70 116 Average Rating 44 | 4 8 10 21 24 35 48 84 79 61 91 On Entrance 37 | . 6 9 10 24 26 35 84 84 66 63 Naked Turns . | . . . . . . . . . . . Heaviest Build 165 | 11 91 87 103 113 103 140 140 139 130 165 Greatest Support 103 | 40 40 32 40 40 68 88 88 88 88 103 Greatest Overweight (x) 29 | . 29 5 5 10 1 3 1 1 2 27 Average Overweight (x) 1 | . 1 2 2 2 1 1 1 1 . 1 Largest Inventory Capacity 25 | 8 25 25 25 25 25 25 25 25 25 25 Average Capacity 23 | 6 19 25 24 25 25 25 25 25 22 25 Most Carried 25 | 7 22 25 25 25 25 25 25 25 25 25 Average Carried 22 | 3 12 23 24 24 24 24 24 24 20 24 Final Capacity 25 | 8 25 25 25 25 25 25 25 25 25 25 Final Carried 25 | 7 21 24 25 24 25 25 25 25 25 20 Class Distribution -------------------- 56% | Mutant 21% | Skirmisher 6% | Gunner 6% | Tank Dominant Class ---------------- Mutant | -10/Materials Mutant | -10/Mines Mutant | -9/Materials Mutant | -9/Mines Mutant | -8/Materials Scavenger-Tank | -7/Factory Gunner | -7/Storage Gunner | -7/Recycling Skirmisher | -7/Scraptown Tank | -5/Factory Resources | -11 -10 -10 -9 -9 -8 -7 -7 -7 -7 -5 ----------- Run | Yrd Mat Min Mat Min Mat Fac Sto Rec Scr Fac Matter Collected 8667 | 115 594 372 1318 897 866 1184 243 282 332 2464 Remotely 1470 | . . . . . . . . . . 1470 Salvage Created 9710 | 21 750 185 1778 639 993 1391 454 179 . 3320 Parts 420 | 3 43 17 95 41 46 45 21 4 . 105 Haulers Intercepted 10 | . 1 . 4 . 3 1 . . . 1 Recyclers Shooed 9 | . 1 . 3 . . 3 . . . 2 Parts Field Recycled . | . . . . . . . . . . . Retrieved Matter . | . . . . . . . . . . . Parts Self-Destructed . | . . . . . . . . . . . Prevented . | . . . . . . . . . . . Kills | -11 -10 -10 -9 -9 -8 -7 -7 -7 -7 -5 ------- Run | Yrd Mat Min Mat Min Mat Fac Sto Rec Scr Fac Combat Hostiles Destroyed 192 | . 17 10 41 21 18 18 15 . . 52 Guns 62 | . 17 10 7 3 18 7 . . . . Cannons 107 | . . . 30 14 . 8 13 . . 42 AOE 19 | . . . 4 4 . 3 2 . . 6 Classes Destroyed 18 | 1 6 1 5 2 . 2 . . . 1 Worker 9 | . . . . 1 2 2 3 . . 1 Builder 10 | . . . 1 4 . . . . . 5 Tunneler 7 | 1 . 1 1 1 . 1 . . . 2 Hauler 10 | . 1 . 4 . 3 1 . . . 1 Recycler 27 | . 1 . 5 . 2 6 1 4 . 8 Mechanic 2 | . . . 1 . . 1 . . . . Operator 4 | . 2 . . . 2 . . . . . Watcher 3 | . 1 . . . . 2 . . . . Swarmer 27 | . 6 6 3 4 5 . 3 . . . Grunt 110 | . 11 2 24 11 8 9 8 . . 37 Brawler 4 | . . . 2 1 . 1 . . . . Duelist 7 | . . . 4 1 . 1 . . . 1 Sentry 24 | . . . 10 2 5 . 4 . . 3 Demolisher 2 | . . 2 . . . . . . . . Specialist 3 | . . . . . . 3 . . . . Hunter 6 | . . . . . . 4 . . . 2 Programmer 9 | . . . . . . . . . . 9 Assembled 2 | . . . . 2 . . . . . . Best Kill Streak 11 | 1 3 3 6 5 4 8 8 1 . 11 Combat Bots Only 5 | . 3 3 4 4 3 4 5 . . 5 Max Kills in Single Turn 5 | 1 1 1 3 5 2 2 3 1 . 4 Gunslinging 1 | . . . . . . 1 . . . . Exploded 4 | . . . 2 4 . 2 2 . . 3 Melee . | . . . . . . . . . . . Uniques/NPCs Destroyed . | . . . . . . . . . . . Combat | -11 -10 -10 -9 -9 -8 -7 -7 -7 -7 -5 -------- Run | Yrd Mat Min Mat Min Mat Fac Sto Rec Scr Fac Hostile Shots Fired 1582 | . 85 34 147 101 135 322 86 . . 672 Missed 459 | . 25 4 52 34 28 90 36 . . 190 Hits 1123 | . 60 30 95 67 107 232 50 . . 482 Melee 27 | . . . 5 12 . 6 . . . 4 Projectile 1096 | . 60 30 90 55 107 226 50 . . 478 AOE 6 | . . 4 . . . . . . . 2 Critical Strikes 27 | . . . 1 2 . 7 . . . 17 Part Disruptions 3 | . . . 1 . . . . . . 2 Damage Taken 18102 | . 704 441 1391 979 1289 4357 509 . . 8432 Core 2344 | . 80 161 201 46 158 642 50 . . 1006 Absorbed by Shields . | . . . . . . . . . . . Redirected to Shielding 82 | . . . . . . 82 . . . . Ignored by Resistances 1079 | . . . . . . . . . . 1079 Regen/Repaired (Parts) 409 | . 97 . 238 40 . . . . . 34 Core Remaining (%) 42 | 100 . 3 . 38 71 . . . 1 . Volleys Fired 604 | 6 64 23 107 70 83 75 23 . . 153 Largest 4 | 2 2 2 2 2 2 3 3 . . 4 Hottest 241 | 40 88 130 130 105 56 153 153 . . 241 Shots Fired 1309 | 12 128 46 212 141 166 165 69 . . 370 Gun 505 | 12 128 46 34 26 166 93 . . . . Cannon 780 | . . . 173 114 . 63 69 . . 361 Launcher 24 | . . . 5 1 . 9 . . . 9 Special . | . . . . . . . . . . . Kinetic 1102 | 12 109 30 173 126 166 156 69 . . 261 Thermal 147 | . 19 16 34 14 . . . . . 64 Explosive 12 | . . . 5 1 . . . . . 6 Electromagnetic 48 | . . . . . . 9 . . . 39 Robot Hit Streak 19 | 6 13 9 12 11 18 8 8 . . 19 Robot Miss Streak 8 | 1 3 6 5 4 8 5 3 . . 5 Penetration Max 1 | . . . . . . 1 . . . . Secondary Targets 8 | . 3 . . . 1 4 . . . . Max Gunslinging Chain 1 | . 1 . . . 1 1 . . . . Shots Hit Robots 772 | 10 84 35 134 82 113 81 40 . . 193 Core Hits 421 | 2 28 26 99 32 43 48 22 . . 121 Critical Kills 3 | 1 . . . . 1 . . . . 1 Critical Parts Destroyed 5 | . 1 . . 1 3 . . . . . Critical Strikes 33 | 1 2 . 5 6 4 1 2 . . 12 Burn 1 | . 1 . . . . . . . . . Meltdown 1 | . . . . . . . . . . 1 Destroy 7 | 1 1 . . 1 4 . . . . . Blast 24 | . . . 5 5 . 1 2 . . 11 Melee Attacks . | . . . . . . . . . . . Impact . | . . . . . . . . . . . Slashing . | . . . . . . . . . . . Piercing . | . . . . . . . . . . . Sneak Attacks . | . . . . . . . . . . . Combat Hostiles . | . . . . . . . . . . . Follow-up Attacks . | . . . . . . . . . . . Damage Inflicted 25879 | 112 1263 402 3555 2045 1985 3263 1905 79 . 11270 Guns 5419 | 112 1262 402 404 315 1981 943 . . . . Cannons 16237 | . . . 2572 1454 . 1573 1519 . . 9119 Explosions 3898 | . . . 538 254 . 715 360 . . 2031 Melee . | . . . . . . . . . . . Ramming 325 | . 1 . 41 22 4 32 26 79 . 120 Kinetic 18931 | 112 1046 258 2572 1563 1981 2516 1519 . . 7364 Thermal 2680 | . 216 144 410 206 . 100 . . . 1604 Explosive 1889 | . . . 417 254 . . 360 . . 858 Electromagnetic 2054 | . . . 115 . . 615 . . . 1324 Impact . | . . . . . . . . . . . Slashing . | . . . . . . . . . . . Piercing . | . . . . . . . . . . . Highest Corruption 27 | . . . 4 7 1 2 2 . . 27 Average Corruption 5 | . . . 3 6 1 1 1 . . 10 Corruption Purged 2 | . . . . . . . 2 . . . Corruption Blocked . | . . . . . . . . . . . Effects 206 | . . . 63 74 2 10 . . . 57 Message Errors 50 | . . . 16 22 1 2 . . . 9 Matter Fused 53 | . . . 16 19 . 3 . . . 15 Heat Flow Errors 22 | . . . 9 8 . 1 . . . 4 Energy Discharges 24 | . . . 7 11 . 2 . . . 4 Parts Rejected 4 | . . . . . . . . . . 4 Parts Fused 3 | . . . 2 . . 1 . . . . Data Loss (minor) 14 | . . . 5 4 1 . . . . 4 Data Loss (major) 9 | . . . 2 3 . 1 . . . 3 Misfires 7 | . . . 3 3 . . . . . 1 Alerts 8 | . . . 2 3 . . . . . 3 Misdirections 6 | . . . . . . . . . . 6 Weapon Failures 6 | . . . 1 1 . . . . . 4 Overload Shots . | . . . . . . . . . . . Overflow Damage 825 | . . . 22 9 . 133 69 22 . 570 Projectiles 695 | . . . 22 9 . 106 22 . . 536 Explosions 108 | . . . . . . 27 47 . . 34 Melee 22 | . . . . . . . . 22 . . Knockbacks 92 | . . . 11 9 1 13 1 . . 57 Impact 3 | . . . . . 1 1 . . . 1 Kinetic 79 | . . . 11 7 . 10 1 . . 50 Secondary 10 | . . . . 2 . 2 . . . 6 Self-Inflicted Damage 404 | . . . 112 . . 68 57 . . 167 Shots 14 | . . . 5 . . 4 1 . . 4 Rammed 17 | . 1 . 3 3 . 1 2 1 . 6 Targets Rammed 36 | . 1 . 3 3 1 6 4 5 . 13 Kicked 13 | . . . . . 1 5 . . . 7 Crushed 6 | . . . . . . . 2 4 . . Highest Temperature 394 | . 315 216 255 393 114 394 . . . 334 Average Temperature 90 | . 101 81 60 79 41 173 . . . 110 Received Heat Transfer 5038 | . 288 48 525 261 414 1086 153 . . 2263 Effects 9 | . . . 1 3 . 4 . . . 1 Shutdowns 2 | . . . . 1 . 1 . . . . Energy Bleed 2 | . . . 1 1 . . . . . . Interference 3 | . . . . . . 3 . . . . Matter Decay 1 | . . . . 1 . . . . . . Short Circuit 1 | . . . . . . . . . . 1 Siege Activations . | . . . . . . . . . . . Martial Activations . | . . . . . . . . . . . Shielding Activations . | . . . . . . . . . . . Robots Disrupted 1 | . . . . . . . . . . 1 Combat Hostiles 1 | . . . . . . . . . . 1 Robots Corrupted 7 | . . . . . . 2 . . . 5 Combat Hostiles 3 | . . . . . . . . . . 3 Parts Fried 22 | . . . . . . 7 . 1 . 14 Impact Corruptions 4 | . . . . . . 1 . 2 . 1 Robots Melted 1 | . . . . . . . . . . 1 Combat Hostiles 1 | . . . . . . . . . . 1 Parts Melted 5 | . 2 . . 2 . . . . . 1 Heat Transferred 3177 | . 592 175 555 370 . 75 . . . 1410 Parts Sabotaged . | . . . . . . . . . . . Parts Stolen . | . . . . . . . . . . . Parts Stripped . | . . . . . . . . . . . Power Chain Reactions 3 | . . . 2 . . 1 . . . . Alert | -11 -10 -10 -9 -9 -8 -7 -7 -7 -7 -5 ------- Run | Yrd Mat Min Mat Min Mat Fac Sto Rec Scr Fac Maximum Alert Level 4 | . . . 2 . 1 1 1 . . 4 Low Security (%) 71 | 100 100 100 42 100 69 93 34 100 . 25 Level 1 15 | . . . 37 . 30 6 65 . . 6 Level 2 7 | . . . 20 . . . . . . 26 Level 3 2 | . . . . . . . . . . 15 Level 4 3 | . . . . . . . . . . 26 Level 5 . | . . . . . . . . . . . High Security . | . . . . . . . . . . . Max Security . | . . . . . . . . . . . Peak Influence 1350 | 5 178 86 582 182 298 253 397 143 . 1350 Initial 150 | . . 66 28 150 51 130 111 143 . . Average 185 | . 35 22 251 52 99 76 264 27 . 650 Influence Increases 6773 | 5 546 264 1415 552 707 584 480 71 . 2149 Destroy 0b10 Robot/C 3860 | . 340 200 880 380 360 360 300 . . 1040 Destroy 0b10 Robot/NC 365 | 5 25 5 65 30 45 65 20 20 . 85 Destroy Leader 796 | . 84 40 218 50 96 56 80 . . 172 Allied During Kill 40 | . . 19 21 . . . . . . . Trap Triggered on 0b10 10 | . . . . . . 10 . . . . Successful Hack 117 | . 20 . 52 . 21 . . 21 . 3 Select Force Hacks 210 | . 60 . 60 . 60 . . 30 . . Disable Machine 435 | . 15 . 45 15 15 45 15 . . 285 Destroy Structure 490 | . 2 . 74 32 5 18 35 . . 324 Partial Spotted 15 | . . . . . . . . . . 15 Lose Combat Pursuer 435 | . . . . 45 105 30 30 . . 225 Influence Decreases 5514 | 5 374 362 1102 806 551 626 358 440 . 890 Entered New Map 992 | . . 106 46 237 82 159 136 226 . . Time Decay 3638 | 5 350 236 706 529 409 347 222 214 . 620 Lost Part 564 | . 24 20 30 40 60 120 . . . 270 Lost Ally 20 | . . . 20 . . . . . . . Purge Threat 300 | . . . 300 . . . . . . . Squads Dispatched 37 | . 6 . 4 1 3 3 2 . . 18 Investigation 16 | . 3 . 2 . 3 . . . . 8 Extermination 7 | . . . . . . 1 . . . 6 Reinforcement 11 | . 3 . 1 1 . 2 2 . . 2 Assault 3 | . . . 1 . . . . . . 2 Garrison . | . . . . . . . . . . . Intercept . | . . . . . . . . . . . Searches Triggered . | . . . . . . . . . . . Construction Impeded 2 | . . . . 1 . 1 . . . . Haulers Reinforced 2 | . . . . . . . 1 . . 1 Active Scanning Responses . | . . . . . . . . . . . Cargo Convoy Interrupts 1 | . . . . . . 1 . . . . Stealth | -11 -10 -10 -9 -9 -8 -7 -7 -7 -7 -5 --------- Run | Yrd Mat Min Mat Min Mat Fac Sto Rec Scr Fac Distress Signals 19 | . 4 . 2 2 2 1 1 . . 7 Communications Jammed . | . . . . . . . . . . . Distress Signals . | . . . . . . . . . . . Times Spotted 326 | . 38 10 70 24 34 37 18 . . 95 Peak Tracking Total 12 | . 6 3 5 4 4 12 5 . . 8 Tactical Retreats 25 | . . . . 3 7 2 2 . . 11 Traps | -11 -10 -10 -9 -9 -8 -7 -7 -7 -7 -5 ------- Run | Yrd Mat Min Mat Min Mat Fac Sto Rec Scr Fac Traps Triggered 11 | . 4 . 1 . 2 2 . . . 2 Indirectly . | . . . . . . . . . . . Trap Hack Attempts . | . . . . . . . . . . . Triggered . | . . . . . . . . . . . Disarmed . | . . . . . . . . . . . Reprogrammed . | . . . . . . . . . . . Reused 1 | . . . . . . 1 . . . . Traps Extracted . | . . . . . . . . . . . Installed 2 | . . . . . . 2 . . . . Triggered 1 | . . . . . . 1 . . . . Most Traps Carried 3 | . . . . 3 3 3 . . . . Machines | -11 -10 -10 -9 -9 -8 -7 -7 -7 -7 -5 ---------- Run | Yrd Mat Min Mat Min Mat Fac Sto Rec Scr Fac Machines Disabled 29 | . 1 . 3 1 1 3 1 . . 19 Max in Single Turn 3 | . 1 . 2 1 1 1 1 . . 3 Garrison Access 1 | . . . . . 1 . . . . . Machines Repaired . | . . . . . . . . . . . Machines Dismantled . | . . . . . . . . . . . Machines Sabotaged . | . . . . . . . . . . . Overloaded Fab Kills . | . . . . . . . . . . . Hacking | -11 -10 -10 -9 -9 -8 -7 -7 -7 -7 -5 --------- Run | Yrd Mat Min Mat Min Mat Fac Sto Rec Scr Fac Machines Accessed 58 | . 8 . 12 . 13 . 3 3 6 13 Terminals 32 | . 5 . 9 . 9 . 3 2 . 4 Fabricators 1 | . . . . . . . . . . 1 Repair Stations 3 | . 1 . 1 . . . . . . 1 Recycling Units 13 | . 2 . 2 . 2 . . 1 . 6 Scanalyzers 1 | . . . . . 1 . . . . . Garrison Access 2 | . . . . . 1 . . . . 1 Total Hacks 161 | . 26 . 30 . 35 . 3 4 36 27 Successful 104 | . 13 . 22 . 21 . . 2 36 10 Failed 55 | . 13 . 7 . 13 . 3 2 . 17 Catastrophic 10 | . 1 . . . 1 . 3 . . 5 Database Lockouts 2 | . . . 1 . 1 . . . . . Manual 85 | . 22 . 22 . 19 . 2 3 . 17 Terminals 86 | . 19 . 26 . 27 . 3 3 . 8 Fabricators 2 | . . . . . . . . . . 2 Repair Stations 11 | . 4 . 2 . . . . . . 5 Recycling Units 21 | . 3 . 2 . 5 . . 1 . 10 Scanalyzers 2 | . . . . . 2 . . . . . Garrison Access 3 | . . . . . 1 . . . . 2 Terminal Hacks 58 | . 3 . 9 . 9 . . 1 36 . Record 37 | . . . . . 1 . . . 36 . Part Schematic 3 | . 2 . 1 . . . . . . . Robot Schematic 1 | . . . 1 . . . . . . . Robot Analysis 3 | . 1 . 1 . 1 . . . . . Prototype ID Bank 3 | . . . 1 . 2 . . . . . Branch Access Points 2 | . . . 1 . 1 . . . . . Alert Level 1 | . . . . . 1 . . . . . Unreport Threat 2 | . . . 2 . . . . . . . Transport Status 1 | . . . 1 . . . . . . . Hauler Manifests 1 | . . . . . 1 . . . . . Zone Layout 4 | . . . 1 . 2 . . 1 . . Fabricator Hacks 1 | . . . . . . . . . . 1 Build 1 | . . . . . . . . . . 1 Repair Station Hacks 6 | . 2 . 2 . . . . . . 2 Scan Component 3 | . 1 . 1 . . . . . . 1 Repair 3 | . 1 . 1 . . . . . . 1 Recycling Unit Hacks . | . . . . . . . . . . . Scanalyzer 2 | . . . . . 2 . . . . . Insert Component 1 | . . . . . 1 . . . . . Analyze 1 | . . . . . 1 . . . . . Garrison Access Hacks 1 | . . . . . 1 . . . . . Seal Access 1 | . . . . . 1 . . . . . Unauthorized Hacks 36 | . 8 . 11 . 9 . . 1 . 7 Terminals 22 | . 6 . 9 . 7 . . . . . Botnet 6 | . 2 . 3 . 1 . . . . . Skim 16 | . 4 . 6 . 6 . . . . . Fabricators . | . . . . . . . . . . . Repair Stations 1 | . . . . . . . . . . 1 Mechanics 1 | . . . . . . . . . . 1 Recycling Units 13 | . 2 . 2 . 2 . . 1 . 6 Tunnel 7 | . 2 . 2 . 2 . . 1 . . Fedlink 6 | . . . . . . . . . . 6 Scanalyzers . | . . . . . . . . . . . Garrison Access . | . . . . . . . . . . . Data Cores Recovered 1 | . . . 1 . . . . . . . Used 1 | . . . 1 . . . . . . . Hacking Detections 36 | . 6 . 8 . 9 . 3 2 . 8 Full Trace Events 2 | . 1 . . . . . . . . 1 Feedback Events . | . . . . . . . . . . . Feedback Blocked . | . . . . . . . . . . . Robot Schematics Acquired 1 | . . . 1 . . . . . . . Robots Built . | . . . . . . . . . . . Authchips . | . . . . . . . . . . . Time . | . . . . . . . . . . . Total Robot Build Rating . | . . . . . . . . . . . Part Schematics Acquired 4 | . 2 . 1 . 1 . . . . . Parts Built 2 | . . . . . . . . . . 2 Authchips . | . . . . . . . . . . . Time 139 | . . . . . . . . . . 139 Total Part Build Rating 18 | . . . . . . . . . . 18 Parts Repaired 3 | . 1 . 1 . . . . . . 1 Time 152 | . 26 . 26 . . . . . . 100 Parts Recycled . | . . . . . . . . . . . Recycled Matter . | . . . . . . . . . . . Retrieved Matter . | . . . . . . . . . . . Retrieved Components . | . . . . . . . . . . . Parts Scanalyzed 1 | . . . . . 1 . . . . . Part Schematics Acquired 1 | . . . . . 1 . . . . . Parts Damaged . | . . . . . . . . . . . Bothacking | -11 -10 -10 -9 -9 -8 -7 -7 -7 -7 -5 ------------ Run | Yrd Mat Min Mat Min Mat Fac Sto Rec Scr Fac Used RIF Installer . | . . . . . . . . . . . Robots Hacked . | . . . . . . . . . . . Non-combat . | . . . . . . . . . . . Combat . | . . . . . . . . . . . Robot Hacks Applied . | . . . . . . . . . . . Relay Couplers Released . | . . . . . . . . . . . Fabnet Peak Effective % . | . . . . . . . . . . . Robots Rewired . | . . . . . . . . . . . Allies Hacked . | . . . . . . . . . . . Hacks Repelled . | . . . . . . . . . . . Allies | -11 -10 -10 -9 -9 -8 -7 -7 -7 -7 -5 -------- Run | Yrd Mat Min Mat Min Mat Fac Sto Rec Scr Fac Total Allies 3 | . . 3 . . . . . . . . Largest Group 3 | . . 3 3 . . . . . . . Highest-Rated Group 40 | . . 40 40 . . . . . . . Highest-Rated Ally 16 | . . 16 16 . . . . . . . Total Orders . | . . . . . . . . . . . Ally Attacks 16 | . . 1 15 . . . . . . . Total Damage 126 | . . . 126 . . . . . . . Kills 4 | . . . 4 . . . . . . . Allies Corrupted . | . . . . . . . . . . . Allies Melted . | . . . . . . . . . . . Intel | -11 -10 -10 -9 -9 -8 -7 -7 -7 -7 -5 ------- Run | Yrd Mat Min Mat Min Mat Fac Sto Rec Scr Fac Active Infowar (turns) 10757 | . . 973 3101 656 85 784 . 265 4396 497 Optics 64 | . . . . . . 62 . . 2 . Sensors 7 | . . 2 . . . . . . 2 3 Terrain 8582 | . . . 2691 656 85 . . 265 4391 494 Seismic 1381 | . . 971 410 . . . . . . . Machine Analysis 784 | . . . . . . 784 . . . . ECM 10 | . . . 9 . . . . . 1 . Robot Analysis Total 2 | . 1 . 1 . . . . . . . Derelict Logs Recovered 2 | . . . . 2 . . . . . . Drone Launches . | . . . . . . . . . . . Drone Recoveries . | . . . . . . . . . . . Exploration | -11 -10 -10 -9 -9 -8 -7 -7 -7 -7 -5 ------------- Run | Yrd Mat Min Mat Min Mat Fac Sto Rec Scr Fac Turns Passed 21010 | 111 1760 1022 3103 2491 2360 1144 478 983 5369 2189 Spaces Moved 9224 | 50 649 483 931 651 845 402 158 380 3889 786 Core 35 | 5 1 . . . . . . . 28 1 Treads 4456 | 45 527 . 689 618 . 41 158 380 1690 308 Legs 1435 | . . . . . 845 361 . . . 229 Wheels 1566 | . 121 483 242 33 . . . . 439 248 Hover . | . . . . . . . . . . . Flight 1732 | . . . . . . . . . 1732 . Fastest Speed 26 | 50 130 130 130 215 200 197 225 225 26 120 Average Speed 183 | 149 221 139 271 315 200 204 225 225 125 197 Slowest Speed 1500 | 160 1500 175 320 320 200 340 225 225 225 1400 Overloaded Moves . | . . . . . . . . . . . Propulsion Burnouts . | . . . . . . . . . . . Robots Hopped . | . . . . . . . . . . . Potential Cave-ins 1 | . . . . . . 1 . . . . Cave-ins Triggered . | . . . . . . . . . . . Exploration Rate (%) 62 | 4 97 84 85 100 77 13 45 63 95 28 Regions Visited 10 Branch Regions 5 Pre-discovered Areas 12 | . 2 . 5 1 2 . . 1 . 1 Known Exits Taken 4 | . . . 1 1 1 1 . . . . Unknown Exits Taken 6 | 1 1 1 . . . . 1 1 1 . Scrap Searched 9 | . . 1 . 1 . . . . 7 . Spaces Dug 60 | . . . 22 16 . 1 . . . 21 Terrain Destroyed 353 | . . . 71 36 . 20 34 . . 192 Melee . | . . . . . . . . . . . Projectile 174 | . . . 24 20 . 18 21 . . 91 AOE 178 | . . . 47 16 . 1 13 . . 101 Terrain Rammed . | . . . . . . . . . . . Walls Destroyed . | . . . . . . . . . . . Machines Disabled . | . . . . . . . . . . . Actions | -11 -10 -10 -9 -9 -8 -7 -7 -7 -7 -5 --------- Run | Yrd Mat Min Mat Min Mat Fac Sto Rec Scr Fac Total 12162 | 73 839 788 1298 941 1362 575 224 504 4420 1138 Wait 1575 | 5 79 270 148 195 328 13 33 113 351 40 Move 9214 | 49 648 482 930 650 844 401 157 379 3888 786 Hop . | . . . . . . . . . . . Pick Up 227 | 7 22 6 40 6 37 17 4 2 50 36 Fast Attach 101 | 6 11 . 7 3 9 15 . . 35 15 Attach 54 | . 4 3 7 4 6 8 . 2 1 19 Detach 6 | . . . . . . 1 . . 3 2 Swap 112 | . 2 4 22 8 14 16 2 . 5 39 Drop 231 | . 8 . 34 2 40 21 1 3 87 35 Fire 604 | 6 64 23 107 70 83 75 23 . . 153 Melee . | . . . . . . . . . . . Ram . | . . . . . . . . . . . Kick 13 | . . . . . 1 5 . . . 7 Crush 23 | . 1 . 3 3 . 1 4 5 . 6 Escape Stasis . | . . . . . . . . . . . Rewire . | . . . . . . . . . . . Trap 2 | . . . . . . 2 . . . . Miscellaneous . | . . . . . . . . . . . Route ------- -11/Scrapyard -10/Materials (discovered 4 exits: *Mat x3 / [*Min]) -10/Mines (discovered 4 exits: *Mat x2 / [*Exi] / [*Sub]) -9/Materials (discovered 5 exits: *Mat x3 / *Min x2) -9/Mines (discovered 2 exits: *Mat x2) -8/Materials (discovered 3 exits: *Fac x3) -7/Factory (discovered 6 exits: Fac x3 / *Sto / Low x2) -7/Storage -7/Recycling (discovered 2 exits: *Fac / *Scr) -7/Scraptown (discovered 2 exits: *Fac x2) -5/Factory (discovered 1 exit: [*Fac]) History --------- Turn | Location | Event 2 | -11/Scrapyard | Discovered new exit (range 16) 112 | -11/Scrapyard | Entered Materials 302 | -10/Materials | Build established: Mutant 514 | -10/Materials | Discovered new exit (range 3) 783 | -10/Materials | Discovered new exit (range 16) 1177 | -10/Materials | Discovered new exit (range 4) 1248 | -10/Materials | Repaired Lgt. Treads 1500 | -10/Materials | Discovered new exit (range 13) 1872 | -10/Materials | Entered Mines 1879 | -10/Mines | Received a Rocket Launcher from a helpful Derelict 1934 | -10/Mines | Core integrity fell below 50% 1959 | -10/Mines | Discovered new exit (range 14) 2002 | -10/Mines | Deemed a non-threat by the Exiles lab entrance 2002 | -10/Mines | Discovered new exit (range 5) 2166 | -10/Mines | Found a damaged Exp. Sensor Array with a note attached 2168 | -10/Mines | Found Prototype Device 2169 | -10/Mines | Identified Exp. Sensor Array 2225 | -10/Mines | Assembled infested the area 2230 | -10/Mines | Assisted by a Guerilla fighting off Assembled 2632 | -10/Mines | Assisted by bots powering up and referring to "LRC-V3" 2700 | -10/Mines | Core integrity fell below 20% 2756 | -10/Mines | Discovered new exit (range 8) 2796 | -10/Mines | Discovered new exit (range 4) 2894 | -10/Mines | Entered Materials 2894 | -9/Materials | Accompanied by 3 allies 2894 | -9/Materials | Evolved 2 slots: Utility x2 3445 | -9/Materials | Discovered new exit (range 13) 4256 | -9/Materials | Discovered new exit (range 11) 4375 | -9/Materials | Discovered new exit (range 16) 4603 | -9/Materials | Discovered new exit (range 4) 4894 | -9/Materials | First assault squad dispatched 5035 | -9/Materials | Discovered new exit (range 15) 5220 | -9/Materials | Learned location of 3 exits from Materials 5230 | -9/Materials | Identified exit to Materials 5307 | -9/Materials | Learned 4 Recycling zone layouts 5324 | -9/Materials | Learned Materials stockpile data 5362 | -9/Materials | Learned location of 2 exits from Materials 5382 | -9/Materials | Identified exit to Mines 5652 | -9/Materials | Repaired Huge Storage Unit 5738 | -9/Materials | Core integrity fell below 50% 5878 | -9/Materials | Central database locked down 5997 | -9/Materials | Entered Mines 6293 | -9/Mines | Found a hidden stash of uninstalled traps 6308 | -9/Mines | Discovered exit to Materials (range 8) 6438 | -9/Mines | Found a Scrap Suit stashed away for nefarious purposes 6904 | -9/Mines | Found Unknown Device 6904 | -9/Mines | Identified Scrap Suit 7118 | -9/Mines | Joined a pair of Derelicts in attacking an 0b10 outpost 7358 | -9/Mines | Discovered exit to Materials (range 11) 7732 | -9/Mines | Learned location of Zion (-7) 7846 | -9/Mines | Excavation squad dispatched 7846 | -9/Mines | A large section of the Mines collapsed 8096 | -9/Mines | Excavation squad dispatched 8146 | -9/Mines | Lost 3 parts (1p1n1w) 8488 | -9/Mines | Entered Materials 8488 | -8/Materials | Evolved 2 slots: Propulsion x2 8489 | -8/Materials | Identified exit to Factory 8801 | -8/Materials | Met 7R-MNS 9962 | -8/Materials | Central database locked down 10156 | -8/Materials | Learned location of 2 exits from Lower Caves 10233 | -8/Materials | Learned Factory machine intel 10298 | -8/Materials | Learned 8 Factory zone layouts 10402 | -8/Materials | Learned Factory stockpile data 10439 | -8/Materials | Learned Factory stockpile data 10484 | -8/Materials | Learned location of 3 exits from Factory 10848 | -8/Materials | Entered Factory 10848 | -7/Factory | Evolved 2 slots: Utility x1, Weapon x1 10849 | -7/Factory | Caught up to 7R-MNS 10849 | -7/Factory | Identified exit to Storage 10849 | -7/Factory | Identified exit to Lower Caves 10850 | -7/Factory | Identified exit to Factory 10853 | -7/Factory | Loaded intel: 297 machine locations 11182 | -7/Factory | Lost 7 parts (1p2n2u2w) 11581 | -7/Factory | Build established: Scavenger-Tank 11698 | -7/Factory | Cargo convoy interrupted 11775 | -7/Factory | Core integrity fell below 50% 11784 | -7/Factory | Found Prototype Protection 11784 | -7/Factory | Identified Active Cooling Armor 11804 | -7/Factory | Core integrity fell below 20% 11829 | -7/Factory | Lost 4 parts (2n1u1w) 11992 | -7/Factory | Entered Storage 12184 | -7/Storage | Build established: Gunner 12349 | -7/Storage | Found Prototype Launcher 12461 | -7/Storage | Used back door to open Recycling access 12461 | -7/Storage | Discovered new exit (range 5) 12470 | -7/Storage | Entered Recycling 12720 | -7/Recycling | Discovered new exit (range 16) 13311 | -7/Recycling | Discovered new exit (range 15) 13397 | -7/Recycling | Scanned before Scraplab entrance 13430 | -7/Recycling | Entered Scraplab 13453 | -7/Recycling | Entered Scraptown 13495 | -7/Scraptown | Build established: Skirmisher 14081 | -7/Scraptown | Discovered new exit (range 15) 14390 | -7/Scraptown | Visited Cyclists 14479 | -7/Scraptown | Visited TADAMA 14618 | -7/Scraptown | Visited Spacefarers 15037 | -7/Scraptown | Visited Fellowship of the Rings 15109 | -7/Scraptown | Visited UFD Registry 15140 | -7/Scraptown | Visited Red Mages 15217 | -7/Scraptown | Visited Supply Room 15274 | -7/Scraptown | Registered with UFD as "Cogguard" 15308 | -7/Scraptown | Visited Symbiants 15367 | -7/Scraptown | Entered Cyclist Reading Room 15535 | -7/Scraptown | Visited Scrapoid Research Area 15673 | -7/Scraptown | Visited Junk Repository 15717 | -7/Scraptown | Identified Rocket Array 15826 | -7/Scraptown | Visited Derelict Rescue Squad 15842 | -7/Scraptown | Found DRS Beacon 15878 | -7/Scraptown | Discovered new exit (range 20) 16085 | -7/Scraptown | Visited Modified Component R&D 16151 | -7/Scraptown | Visited A0-MCA Data Center 16191 | -7/Scraptown | Visited DA-N13 Charitable Foundation 16202 | -7/Scraptown | Found DCF Scrap (29 items) 16901 | -7/Scraptown | Visited Junk Cannon Lab 16955 | -7/Scraptown | Visited Scrap Suit Storage 17798 | -7/Scraptown | Build established: Sprinter 17899 | -7/Scraptown | Given an S rating by A0-MCA 17900 | -7/Scraptown | Found Prototype Processor 17907 | -7/Scraptown | Found A0-MCA's Component Scanner 17939 | -7/Scraptown | Identified Expert System 18335 | -7/Scraptown | Build established: Mutant 18741 | -7/Scraptown | Build established: Derelict-Skirmisher 18757 | -7/Scraptown | Met Optimus 18757 | -7/Scraptown | Accepted into 0bPrime 18822 | -7/Scraptown | Entered Factory 18822 | -5/Factory | Evolved 4 slots: Power x1, Utility x2, Weapon x1 19101 | -5/Factory | Expert System configures itself against Grunt targets 19107 | -5/Factory | Repaired Broken F-cell Engine? 19189 | -5/Factory | Fabricated Enh. Hardcell Cannon (x2) 19253 | -5/Factory | Loaded intel: 8 recycling unit locations 19574 | -5/Factory | Learned location of Protoforge (-2) 19916 | -5/Factory | Build established: Tank 20022 | -5/Factory | First assault squad dispatched 20266 | -5/Factory | System corruption reached 10% 20368 | -5/Factory | Discovered new exit (range 19) 20506 | -5/Factory | Found Faulty Rocket Array 20801 | -5/Factory | Lost 11 parts (2p4n3u2w) 20962 | -5/Factory | Core integrity fell below 50% 21001 | -5/Factory | Core integrity fell below 20% 21007 | -5/Factory | Build established: Mutant 21011 | -5/Factory | Destroyed by H-66 Slayer with Gauss Rifle Last Messages --------------- 20989_ Penetrated by Slug. 20989_ Arm. Medium Treads destroyed. 20990_ Penetrated by Slug. 20994_ Slug penetrates Wall. 20994_ Penetrated by Slug. 20997_ Critical hit (Destroy). 20997_ Arm. Medium Treads destroyed. 20998_ Penetrated by Slug. 20998_ Slug penetrates Wall. 21000_ Penetrated by Slug. 21005_ System corrupted: Matter fused (-7). 21005_ Penetrated by Slug. 21005_ Imp. Coolant Injector destroyed. 21007_ ALERT: Potential suspicious activity detected, Programmers report to Factory Zone 6N. 21007_ Slug penetrates Wall. 21007_ Imp. Coolant Injector destroyed. 21008_ Penetrated by Slug. 21010_ Slug penetrates Wall. Map ----- +----------------------------------------------------+ | ????????????????????????####+####?# #??? ????????? | | ?????????????????######## #?# #??? ?????? ? | | ?????????????????# ### #######?????## | | ?????????????????# T | | ?????????? ??????# "" | | ??????????"""????# | | ????????# """ ???# ############+####? | | ????????# """ ??# ## #????????? ??? #? | | ????????# ?# ##########????????? ?? ## | | ??????????""" # #???????????????????? ? ## | | ?????????????? + #??????????????????? ## | | ?????????????? # #????? ? ?????????? ## | | ?????????????? ?# #????! ??????? ? ?# | | ???!??????????#### ###?? # ???"????? ## | | ???????????????# #? ! ??????? ?"" ## | | ????????# ###### m #? ??#? ???" """ ## | | ????????# # ? ? ? "" ?"" ## | | ????????# # ??? ??# ? "" "" ## | | ????????+ """" " ??? ? # ? ## | | ????????# "F " # ???? ?############## | | ????????# #? ???? # ##### | | ????????##### ! i # ??? # ?? ##### | | ????????????# """ %% g #? ? ?? ##### | | ????????????# ""% %%% b # ? # ? ##### | | ????????????# ""h %%% ##########?##+#####+##### | | ????????????# h @ ^ ##??# | | ????????????# ^^ ##### ? ##### | | ????????????#+### ##### ##### | | ????????????????# ##### | | ???????????? # ########%####### | | ??????????? ? ? # ######## ####### | | ???????????? ? # ######## ####### | | ???????????? ?############+###+########+####### | | ????????? ???? ????# # # | | ?????????? ? ???#??# # * """# | | ????????? ? ??? #?## # ** Y"# | | ?????????? ??? ?###% % # * """# | | ???????????????##### %"%" """""" # # | | ?????????????#####?# "" """"" # # | | ??????????#??#?##### """ " """"" # # | | ????????##???#???### """"""" """"""" # #[ | | ?????????#?????###?########################+###### | | ?????????????#??##??##### # %% | | ?????????#???#?#?##?#####"" """ # !%%%% | | ???????????#?##?#??######"F """ # =!!% | | ?????#??#??####??###?####"" """ + ! = * =% | | ??????????#######?#?#####"" # = = |!!![* | | ???????????###??###??#### # !####*##### | | #???????###?#?##??####### ! # ####+##### | | ?????????##???##?######## # # %! | +----------------------------------------------------+ Best States ------------- Heat Dissipation 108 Coolant Potential 160 Energy Generation 33 Energy Capacity 900 Matter Stores 300 Matter Capacity 450 Sight Range 18 Robot Scan Range 20 Terrain Scan Range 20 Terrain Scan Density 210 ECM Strength 1 Armor Coverage 900 Resistance: TH 25 Resistance: EM 15 Power Shielding 66 Propulsion Shielding 66 Weapon Cycling 15 Phase Shifting 5 Evasion (%) 64 Armor Integrity Analysis 30 Recoil Reduction 4 Particle Charging 20 Offensive Hacking 10 Authchip Count 1 Trap Extractor Capacity 4 Item Schematics ----------------- Huge Storage Unit | -10/Materials | Hacked Hcp. Storage Unit | -10/Materials | Hacked Cargo Storage Unit | -9/Materials | Hacked Lrg. Storage Unit | -8/Materials | Scanalyzed Robot Schematics ------------------ M-13 Machinist | -9/Materials | Hacked Fabricated ------------ Enh. Hardcell Cannon | x2 | -5/Factory | Preloaded Repaired ---------- Lgt. Treads | 30% | -10/Materials Huge Storage Unit | 60% | -9/Materials F-cell Engine | 74% | -5/Factory | Broken Alien Tech Used ----------------- None Achievements -------------- None Challenges ------------ None Game ------ Seed VoltaicMicrowarpLoader Manual? 0 Play Time 02:33:48 Cumulative 712.7 hours Start 2025.06.08 @ 02:26:02 End 2025.06.08 @ 05:11:52 Sessions 1 Manual Loads 0 Difficulty Rogue Special Mode None Game No. 160 Rogue 160 Adventurer 0 Explorer 0 Win Type - Total 43 Types 12/6/9/2/1/1/8/2/1/1 Lore% 71 Gallery% 85 Achievement% 82 Wizard Run 0 Options --------- Layout 1 ASCII 0 Keyboard 0 Movement Mouse Keybinds 0 Fullscreen 2 Font 24/Smallcaps Map View 50x35 Zoom Use 6% Tactical HUD 1 Map Filters NONE Filters NONE Steam 1 RUN: 76f51219-eaa3-4605-b5de-d5cebbb7aef2